bitfinex/quotes_BTCUSD_20260127
["timestamp","ask_amount","ask_price","bid_price","bid_amount"]
[1769493556286,0.02400094,88530.0,88518.0,4.675e-05]
[1769493563297,0.01129522,88533.0,88518.0,4.675e-05]
[1769493563515,0.56472018,88535.0,88518.0,4.675e-05]
[1769493563516,0.57601514,88535.0,88518.0,4.675e-05]
[1769493564403,0.56472018,88535.0,88518.0,4.675e-05]
[1769493564602,0.57601514,88535.0,88518.0,4.675e-05]
[1769493566337,0.56472018,88535.0,88518.0,4.675e-05]
[1769493566912,0.57601514,88535.0,88518.0,4.675e-05]
[1769493567414,0.57601514,88535.0,88518.0,0.02346491]
[1769493567617,0.56472018,88535.0,88518.0,0.02346491]
[1769493568698,0.57601514,88535.0,88518.0,0.02346491]
[1769493568914,0.0001362,88541.0,88522.0,0.02341816]
[1769493569123,0.0001362,88541.0,88524.0,0.53885709]
[1769493569330,0.0001362,88541.0,88525.0,0.02341816]
[1769493569723,0.0114304,88541.0,88525.0,0.02341816]
[1769493569956,0.0114304,88541.0,88525.0,0.07965036]
[1769493570385,0.01129458,88538.0,88525.0,0.02341816]
[1769493570562,0.52233497,88537.0,88519.0,0.02341816]
[1769493571170,0.52233497,88537.0,88520.0,0.02341816]
[1769493571507,0.52233497,88537.0,88521.0,0.02341816]
[1769493571678,0.03444324,88541.0,88523.0,0.02341816]
[1769493572461,0.02314904,88541.0,88523.0,0.02341816]
[1769493575922,0.01129394,88543.0,88523.0,0.02341816]
[1769493576130,0.53362891,88543.0,88523.0,0.02341816]
[1769493576447,0.53362891,88543.0,88525.0,0.02341816]
[1769493577731,0.53362904,88542.0,88525.0,0.02341816]
[1769493578720,0.0112942,88541.0,88525.0,0.02341816]
[1769493579051,0.53362904,88542.0,88525.0,0.02341816]
[1769493582069,0.0112942,88541.0,88525.0,0.02341816]
[1769493582591,0.53362904,88542.0,88525.0,0.02341816]
[1769493583013,0.01129433,88540.0,88525.0,0.02341816]
[1769493583209,0.0112942,88541.0,88525.0,0.02341816]
[1769493584548,0.53362904,88542.0,88525.0,0.02341816]
[1769493584876,0.53362904,88542.0,88525.0,0.08585212]
[1769493585043,0.0112942,88541.0,88525.0,0.08585212]
[1769493585424,0.53362904,88542.0,88525.0,0.08585212]
[1769493585644,0.0112942,88541.0,88525.0,0.08585212]
[1769493585887,0.53362904,88542.0,88525.0,0.08585212]
[1769493586012,0.31026348,88542.0,88526.0,0.08590382]
[1769493587253,0.29896941,88542.0,88526.0,0.08590382]
[1769493587994,0.31026348,88542.0,88526.0,0.08590382]
[1769493588407,0.0112942,88541.0,88526.0,0.08590382]
[1769493588628,0.31026348,88542.0,88527.0,0.06247609]
[1769493589010,0.13317209,88542.0,88527.0,0.08589425]
[1769493592607,0.0112942,88541.0,88527.0,0.08589425]
[1769493596114,0.01129433,88540.0,88527.0,0.08589425]
[1769493596517,0.0112942,88541.0,88527.0,0.08589425]
[1769493596957,0.13317209,88542.0,88528.0,0.06247513]
[1769493598469,0.0112942,88541.0,88528.0,0.06247513]
[1769493599271,0.13317209,88542.0,88528.0,0.06247513]
[1769493599632,0.0908337,88542.0,88522.0,0.56259144]
[1769493599840,0.20987559,88541.0,88523.0,0.02373435]
[1769493600340,0.05647292,88539.0,88523.0,0.02373435]
[1769493600549,0.22117055,88535.0,88519.0,0.0001474]
[1769493601011,0.20987559,88534.0,88519.0,0.0001474]
[1769493601152,0.02555346,88533.0,88519.0,0.0001474]
[1769493601350,0.20987559,88534.0,88519.0,0.0001474]
[1769493601557,0.20987559,88534.0,88519.0,0.02388175]
[1769493601763,0.0230692,88536.0,88519.0,0.54731911]
[1769493601969,0.23294479,88537.0,88520.0,0.02373435]
[1769493602397,0.01129484,88536.0,88520.0,0.02373435]
[1769493602618,0.20987559,88536.0,88520.0,0.02373435]
[1769493606454,0.22117043,88536.0,88520.0,0.02373435]
[1769493606856,0.06169523,88535.0,88520.0,0.02373435]
[1769493607898,0.07299019,88535.0,88520.0,0.02373435]
[1769493608244,0.06169523,88535.0,88520.0,0.02373435]
[1769493610603,0.07299019,88535.0,88520.0,0.02373435]
[1769493610810,0.06169523,88535.0,88520.0,0.02373435]
[1769493611051,0.07299019,88535.0,88520.0,0.02373435]
[1769493611261,0.06169523,88535.0,88520.0,0.02373435]
[1769493611461,0.07299019,88535.0,88520.0,0.02373435]
[1769493611869,0.06169523,88535.0,88520.0,0.02373435]
[1769493612280,0.22117043,88536.0,88520.0,0.02373435]
[1769493612791,0.01129496,88535.0,88520.0,0.02373435]
[1769493613090,0.22117043,88536.0,88520.0,0.02373435]
[1769493613286,0.01129496,88535.0,88520.0,0.02373435]
[1769493613428,0.22117043,88536.0,88520.0,0.02373435]
[1769493613631,0.27044108,88536.0,88520.0,0.02373435]
[1769493613857,0.27764098,88541.0,88521.0,0.02373435]
[1769493614065,0.12440271,88540.0,88521.0,0.02373435]
[1769493614283,0.22116992,88540.0,88521.0,0.02373435]
[1769493616072,0.01129445,88539.0,88521.0,0.02373435]
[1769493618084,0.01129458,88538.0,88521.0,0.02373435]
[1769493619108,0.01129458,88538.0,88521.0,0.02118288]
[1769493619462,0.01129458,88538.0,88521.0,0.01992619]
[1769493621456,0.01129445,88539.0,88521.0,0.01992619]
[1769493621668,0.22116992,88540.0,88521.0,0.01992619]
[1769493621828,0.11314282,88539.0,88521.0,0.01992619]
[1769493622028,0.20987559,88540.0,88521.0,0.53369092]
[1769493622279,0.11314282,88539.0,88522.0,0.02389482]
[1769493622498,0.20987559,88540.0,88522.0,0.02389482]
[1769493622699,0.11314437,88539.0,88522.0,0.02389482]
[1769493622842,0.20987559,88540.0,88523.0,0.02306919]
[1769493623060,0.11314437,88539.0,88524.0,0.02306919]
[1769493623286,0.20987559,88540.0,88524.0,0.02306919]
[1769493623467,0.11314621,88539.0,88524.0,0.02306919]
[1769493623841,0.20987559,88540.0,88524.0,0.02306919]
[1769493624020,0.11314621,88539.0,88524.0,0.02306919]
[1769493624227,0.20987559,88540.0,88524.0,0.04388738]
[1769493624462,0.11314842,88539.0,88524.0,0.04388738]
[1769493624628,0.20987559,88540.0,88524.0,0.04388738]
[1769493624838,0.11314842,88539.0,88524.0,0.04388738]
[1769493625170,0.20987559,88540.0,88524.0,0.04388738]
[1769493625304,0.20987559,88540.0,88525.0,0.05552291]
[1769493626176,0.0112942,88541.0,88525.0,0.05552291]
[1769493626409,0.0112942,88541.0,88526.0,0.02457266]
[1769493626937,0.01129407,88542.0,88526.0,0.02457266]
[1769493627276,0.0112942,88541.0,88526.0,0.02457266]
[1769493627474,0.01129407,88542.0,88527.0,0.06120614]
[1769493627674,0.0112942,88541.0,88527.0,0.06120614]
[1769493627878,0.01129407,88542.0,88527.0,0.06120614]
[1769493630700,0.0133927,88543.0,88527.0,0.06120614]
[1769493633205,0.01129407,88542.0,88527.0,0.06120614]
[1769493633325,0.0133927,88543.0,88528.0,0.06177446]
[1769493633929,0.01129407,88542.0,88528.0,0.06177446]
[1769493634840,0.0133927,88543.0,88528.0,0.06177446]
[1769493635873,0.01129407,88542.0,88528.0,0.06177446]
[1769493636446,0.0133927,88543.0,88528.0,0.06177446]
[1769493637017,0.11314362,88542.0,88528.0,0.06177446]
[1769493637176,0.11314362,88541.0,88526.0,0.02457266]
[1769493637379,0.11314362,88540.0,88526.0,0.02457266]
[1769493637579,0.01129407,88542.0,88526.0,0.02457266]
[1769493637835,0.11314291,88541.0,88526.0,0.02457266]
[1769493638147,0.11314291,88540.0,88526.0,0.02457266]
[1769493638348,0.01129407,88542.0,88526.0,0.02457266]
[1769493638545,0.11314249,88541.0,88526.0,0.02457266]
[1769493638730,0.01129407,88542.0,88526.0,0.02457266]
[1769493638731,0.11314249,88540.0,88526.0,0.02457266]
[1769493638932,0.01129407,88542.0,88526.0,0.02457266]
[1769493639252,0.11314249,88541.0,88526.0,0.02457266]
[1769493639552,0.01129407,88542.0,88526.0,0.02457266]
[1769493639553,0.11314249,88540.0,88526.0,0.02457266]
[1769493639692,0.01129407,88542.0,88526.0,0.02457266]
[1769493639693,0.0112942,88541.0,88526.0,0.02457266]
[1769493639898,0.11314221,88540.0,88526.0,0.02457266]
[1769493640251,0.0112942,88541.0,88526.0,0.02457266]
[1769493640431,0.11314215,88540.0,88526.0,0.02457266]
[1769493640634,0.01129433,88540.0,88526.0,0.02457266]
[1769493640835,0.0112942,88541.0,88526.0,0.02457266]
[1769493641043,0.12443648,88540.0,88526.0,0.02457266]
[1769493641301,0.01129433,88540.0,88526.0,0.02457266]
[1769493642024,0.06986932,88534.0,88519.0,0.0001474]
[1769493642266,0.01129547,88531.0,88519.0,0.0001474]
[1769493642905,0.0112956,88530.0,88519.0,0.0001474]
[1769493643115,0.00209876,88528.0,88519.0,0.0001474]
[1769493643321,0.00209876,88522.0,88519.0,0.0001474]
[1769493643526,0.02699371,88522.0,88519.0,0.0001474]
[1769493644082,0.02489495,88522.0,88519.0,0.0001474]
[1769493644244,0.02489495,88527.0,88519.0,0.0001474]
[1769493644454,0.00209876,88528.0,88519.0,0.0001474]
[1769493645462,0.01129547,88531.0,88519.0,0.0001474]
[1769493646221,0.0112956,88530.0,88519.0,0.0001474]
[1769493646623,0.01129509,88534.0,88519.0,0.0001474]
[1769493646844,0.01129496,88535.0,88520.0,0.5111476]
[1769493647048,0.01129509,88534.0,88520.0,0.5111476]
[1769493647600,0.01129522,88533.0,88520.0,0.5111476]
[1769493647800,0.01129509,88534.0,88520.0,0.5111476]
[1769493648359,0.01129522,88533.0,88520.0,0.5111476]
[1769493648559,0.01113659,88533.0,88520.0,0.5111476]
[1769493648827,0.01129509,88534.0,88520.0,0.5111476]
[1769493649027,0.01129522,88533.0,88520.0,0.5111476]
[1769493649211,0.01129509,88534.0,88520.0,0.5111476]
[1769493649465,0.01129522,88533.0,88520.0,0.5111476]
[1769493649848,0.01129509,88534.0,88520.0,0.5111476]
[1769493650048,0.01129484,88536.0,88520.0,0.5111476]
[1769493650251,0.01129484,88536.0,88520.0,0.54152888]
[1769493651053,0.01129496,88535.0,88520.0,0.54152888]
[1769493652142,0.01129496,88535.0,88520.0,0.5111476]
[1769493652341,0.01129509,88534.0,88520.0,0.5111476]
[1769493652544,0.01129496,88535.0,88520.0,0.5111476]
[1769493654325,0.01129509,88534.0,88520.0,0.5111476]
[1769493656376,0.01129522,88533.0,88520.0,0.5111476]
[1769493657979,0.01129509,88534.0,88520.0,0.5111476]
[1769493658182,0.01129522,88533.0,88520.0,0.5111476]
[1769493658979,0.01129509,88534.0,88520.0,0.5111476]
[1769493659363,0.01129496,88535.0,88520.0,0.5111476]
[1769493660744,0.01129509,88534.0,88520.0,0.5111476]
[1769493660977,0.01129484,88536.0,88520.0,0.5111476]
[1769493661099,0.0112942,88541.0,88523.0,0.55433588]
[1769493661296,0.12436701,88540.0,88526.0,0.02368388]
[1769493661504,0.05647045,88542.0,88530.0,0.55433588]
[1769493661505,0.11307268,88539.0,88530.0,0.55433588]
[1769493661741,0.0112942,88541.0,88530.0,0.57801976]
[1769493661947,0.11306917,88540.0,88530.0,0.57801976]
[1769493662159,0.11306917,88539.0,88530.0,0.57801976]
[1769493662461,0.01129433,88540.0,88530.0,0.57801976]
[1769493662663,0.11307209,88539.0,88530.0,0.57801976]
[1769493662895,0.01129433,88540.0,88530.0,0.57801976]
[1769493663193,0.11307209,88539.0,88530.0,0.57801976]
[1769493663397,0.0112933,88548.0,88530.0,0.59437573]
[1769493663529,0.01129356,88546.0,88534.0,0.55433588]
[1769493663799,0.11306902,88545.0,88535.0,0.02368388]
[1769493663986,0.11306902,88544.0,88535.0,0.02368388]
[1769493664198,0.01129356,88546.0,88535.0,0.02368388]
[1769493664391,0.11306336,88545.0,88535.0,0.02368388]
[1769493664618,0.01129369,88545.0,88535.0,0.02368388]
[1769493665021,0.01129356,88546.0,88535.0,0.02368388]
[1769493665198,0.01129369,88545.0,88535.0,0.02368388]
[1769493665543,0.01129356,88546.0,88535.0,0.02368388]
[1769493666505,0.06776067,88547.0,88535.0,0.02368388]
[1769493666506,0.01129343,88547.0,88535.0,0.02368388]
[1769493666627,0.01129356,88546.0,88535.0,0.02368388]
[1769493667342,0.01129382,88544.0,88535.0,0.02368388]
[1769493667970,0.01129394,88543.0,88535.0,0.02368388]
[1769493668164,0.01129433,88540.0,88521.0,0.55433588]
[1769493668509,0.01129407,88542.0,88526.0,0.02368388]
[1769493668712,0.0112942,88541.0,88528.0,0.57801976]
[1769493668847,0.01129407,88542.0,88528.0,0.57801976]
[1769493669047,0.0112942,88541.0,88528.0,0.57801976]
[1769493669253,0.01129407,88542.0,88528.0,0.57801976]
[1769493669954,0.0112942,88541.0,88528.0,0.57801976]
[1769493670364,0.01129458,88538.0,88528.0,0.57801976]
[1769493670608,0.01129445,88539.0,88528.0,0.57801976]
[1769493671437,0.01129433,88540.0,88528.0,0.57801976]
[1769493671901,0.01129458,88538.0,88528.0,0.57801976]
[1769493672120,0.01129445,88539.0,88528.0,0.57801976]
[1769493672524,0.01129369,88545.0,88528.0,0.61213786]
[1769493672837,0.01129369,88545.0,88531.0,0.02368388]
[1769493672838,0.01129382,88544.0,88531.0,0.02368388]
[1769493672984,0.01129382,88544.0,88531.0,0.57801976]
[1769493673411,0.01129369,88545.0,88531.0,0.57801976]
[1769493673613,0.01129369,88545.0,88533.0,0.55433588]
[1769493673831,0.01129369,88545.0,88534.0,0.02368388]
[1769493675264,0.01129356,88546.0,88534.0,0.02368388]
[1769493675649,0.01129369,88545.0,88534.0,0.02368388]
[1769493675859,0.01129343,88547.0,88534.0,0.02368388]
[1769493677345,0.01129356,88546.0,88534.0,0.02368388]
[1769493680258,0.01129343,88547.0,88534.0,0.02368388]
[1769493680474,0.01129318,88549.0,88534.0,0.02368388]
[1769493680675,0.01129356,88546.0,88534.0,0.02368388]
[1769493680931,0.06776006,88548.0,88534.0,0.02368388]
[1769493680932,0.01129343,88547.0,88534.0,0.02368388]
[1769493681505,0.0112933,88548.0,88534.0,0.02368388]
[1769493681728,0.01129343,88547.0,88534.0,0.02368388]
[1769493683043,0.01129356,88546.0,88534.0,0.02368388]
[1769493683446,0.01129343,88547.0,88534.0,0.02368388]
[1769493685818,0.0112933,88548.0,88534.0,0.02368388]
[1769493686023,0.01129343,88547.0,88534.0,0.02368388]
[1769493687234,0.01129356,88546.0,88534.0,0.02368388]
[1769493687416,0.01129343,88547.0,88534.0,0.02368388]
[1769493687641,0.01129356,88546.0,88534.0,0.02368388]
[1769493688404,0.01129356,88546.0,88533.0,0.55433588]
[1769493688594,0.01129343,88547.0,88533.0,0.55433588]
[1769493688788,0.01129369,88545.0,88533.0,0.55433588]
[1769493689051,0.01129356,88546.0,88533.0,0.55433588]
[1769493689253,0.01129343,88547.0,88533.0,0.55433588]
[1769493689405,0.01129356,88546.0,88533.0,0.55433588]
[1769493690280,0.01129382,88544.0,88533.0,0.55433588]
[1769493691573,0.01129407,88542.0,88533.0,0.55433588]
[1769493692036,0.06776337,88544.0,88533.0,0.55433588]
[1769493692995,0.01129407,88542.0,88533.0,0.55433588]
[1769493693267,0.19756813,88548.0,88533.0,0.55433588]
[1769493693489,0.05646956,88544.0,88533.0,0.61209094]
[1769493693702,0.01129407,88542.0,88533.0,0.61209094]
[1769493694135,0.0112942,88541.0,88533.0,0.61209094]
[1769493694339,0.01129356,88546.0,88533.0,0.61209094]
[1769493694539,0.01129369,88545.0,88533.0,0.61209094]
[1769493694692,0.01129369,88545.0,88534.0,0.61227306]
[1769493694898,0.01129369,88545.0,88534.0,0.5487425]
[1769493695331,0.01129356,88546.0,88534.0,0.5487425]
[1769493695532,0.01129279,88552.0,88534.0,0.5487425]
[1769493695732,0.01129254,88554.0,88538.0,0.5487425]
[1769493695733,0.01129267,88553.0,88538.0,0.5487425]
[1769493695971,0.01129267,88553.0,88541.0,0.02321468]
[1769493696129,0.01129254,88554.0,88542.0,0.57195718]
[1769493696345,0.01129241,88555.0,88542.0,0.57195718]
[1769493696671,0.01129267,88553.0,88542.0,0.57195718]
[1769493697015,0.01129216,88557.0,88542.0,0.57195718]
[1769493697225,0.01129216,88557.0,88545.0,0.02321468]
[1769493697421,0.01129216,88557.0,88546.0,0.5487425]
[1769493697630,0.01129228,88556.0,88546.0,0.5487425]
[1769493698243,0.01129241,88555.0,88546.0,0.5487425]
[1769493698578,0.01140332,88555.0,88546.0,0.5487425]
[1769493698754,0.01145122,88554.0,88546.0,0.5487425]
[1769493698955,0.00015868,88554.0,88546.0,0.5487425]
[1769493699968,0.00011091,88555.0,88546.0,0.5487425]
[1769493700183,0.01140332,88555.0,88548.0,0.5487425]
[1769493700585,0.01129254,88554.0,88548.0,0.5487425]
[1769493701031,0.01129254,88554.0,88549.0,0.05719572]
[1769493701203,0.01140332,88555.0,88549.0,0.05719572]
[1769493701581,0.01129254,88554.0,88549.0,0.05719572]
[1769493702233,0.01140332,88555.0,88549.0,0.05719572]
[1769493702454,0.01129254,88554.0,88549.0,0.05719572]
[1769493702653,0.01140332,88555.0,88549.0,0.05719572]
[1769493703057,0.01129254,88554.0,88549.0,0.05719572]
[1769493703250,0.01129254,88554.0,88543.0,0.5487425]
[1769493703917,0.01140332,88555.0,88543.0,0.5487425]
[1769493704127,0.01129254,88554.0,88543.0,0.5487425]
[1769493704339,0.01140332,88555.0,88543.0,0.5487425]
[1769493704543,0.00011091,88555.0,88546.0,0.5487425]
[1769493714631,0.00011091,88555.0,88546.0,0.57353509]
[1769493717642,0.00011091,88555.0,88546.0,0.5487425]
[1769493717837,0.00011091,88555.0,88548.0,0.53244868]
[1769493718037,0.00011091,88555.0,88548.0,0.55724127]
[1769493718470,0.69674458,88567.0,88549.0,0.05572413]
[1769493718587,0.05645799,88562.0,88549.0,0.05572413]
[1769493719048,0.0112919,88559.0,88549.0,0.05572413]
[1769493719598,0.01129203,88558.0,88549.0,0.05572413]
[1769493719799,0.01129216,88557.0,88549.0,0.05572413]
[1769493720056,0.01129228,88556.0,88545.0,0.0001474]
[1769493720254,0.01129216,88557.0,88545.0,0.00025831]
[1769493722084,0.01129228,88556.0,88545.0,0.00025831]
[1769493723188,0.01129216,88557.0,88545.0,0.00025831]
[1769493724448,0.01129203,88558.0,88545.0,0.00025831]
[1769493724625,0.01129216,88557.0,88546.0,0.55724127]
[1769493724828,0.01129203,88558.0,88547.0,0.05574996]
[1769493725191,0.01129203,88558.0,88546.0,0.55724127]
[1769493726455,0.01129216,88557.0,88546.0,0.55724127]
[1769493726673,0.01129203,88558.0,88546.0,0.55724127]
[1769493728364,0.01129216,88557.0,88546.0,0.55724127]
[1769493728982,0.06775156,88559.0,88546.0,0.55724127]
[1769493728983,0.01129177,88560.0,88546.0,0.55724127]
[1769493729179,0.06774951,88562.0,88547.0,0.02479259]
[1769493729180,0.01129165,88561.0,88547.0,0.02479259]
[1769493729391,0.1131147,88560.0,88548.0,0.55724127]
[1769493729598,0.01129165,88561.0,88548.0,0.55724127]
[1769493729910,0.1131147,88560.0,88548.0,0.55724127]
[1769493730140,0.01129152,88562.0,88550.0,0.53244868]
[1769493730343,0.11311768,88561.0,88551.0,0.03891012]
[1769493730558,0.11311768,88560.0,88552.0,0.53244868]
[1769493730814,0.01129088,88567.0,88555.0,0.53244868]
[1769493731161,0.12440541,88566.0,88555.0,0.53244868]
[1769493731465,0.1131144,88565.0,88555.0,0.53244868]
[1769493731665,0.01129101,88566.0,88555.0,0.53244868]
[1769493731666,0.1131144,88564.0,88555.0,0.53244868]
[1769493731888,0.1131144,88563.0,88555.0,0.55212655]
[1769493732091,0.1131144,88562.0,88555.0,0.55212655]
[1769493732274,0.01129101,88566.0,88555.0,0.55212655]
[1769493732494,0.11311262,88565.0,88555.0,0.55212655]
[1769493732690,0.11311262,88564.0,88555.0,0.55212655]
[1769493732863,0.01129101,88566.0,88555.0,0.55212655]
[1769493732864,0.11311262,88563.0,88555.0,0.53244868]
[1769493733184,0.01129101,88566.0,88555.0,0.55724127]
[1769493733419,0.12439563,88565.0,88555.0,0.55724127]
[1769493733719,0.11310449,88564.0,88555.0,0.55724127]
[1769493733870,0.01129114,88565.0,88555.0,0.55724127]
[1769493734072,0.11310419,88564.0,88555.0,0.55724127]
[1769493734239,0.01129114,88565.0,88555.0,0.55724127]
[1769493734439,0.11309978,88564.0,88555.0,0.55724127]
[1769493734638,0.01129114,88565.0,88555.0,0.55724127]
[1769493734839,0.11309978,88564.0,88555.0,0.55724127]
[1769493735103,0.01129088,88567.0,88555.0,0.55724127]
[1769493735261,0.11309262,88566.0,88555.0,0.55724127]
[1769493735463,0.11309262,88565.0,88555.0,0.55724127]
[1769493735699,0.11309262,88564.0,88555.0,0.55724127]
[1769493736046,0.01129101,88566.0,88555.0,0.55724127]
[1769493736257,0.12438368,88565.0,88555.0,0.55724127]
[1769493736469,0.01129101,88566.0,88555.0,0.55724127]
[1769493736675,0.11308641,88565.0,88555.0,0.55724127]
[1769493736811,0.01129101,88566.0,88555.0,0.55724127]
[1769493737017,0.11308641,88565.0,88555.0,0.55724127]
[1769493737252,0.01129101,88566.0,88555.0,0.55724127]
[1769493737573,0.1130815,88565.0,88555.0,0.55724127]
[1769493737774,0.01129088,88567.0,88555.0,0.55724127]
[1769493737998,0.11308036,88566.0,88555.0,0.55724127]
[1769493738177,0.01129088,88567.0,88555.0,0.55724127]
[1769493738354,0.12436346,88566.0,88555.0,0.55724127]
[1769493738695,0.01129075,88568.0,88555.0,0.55724127]
[1769493739279,0.01129088,88567.0,88555.0,0.55724127]
[1769493739486,0.01129075,88568.0,88555.0,0.55724127]
[1769493739870,0.01129075,88568.0,88556.0,0.02479259]
[1769493740093,0.01129075,88568.0,88557.0,0.55724127]
[1769493740303,0.01129063,88569.0,88557.0,0.55724127]
[1769493740304,0.01129063,88569.0,88557.0,0.53244868]
[1769493740545,0.01129063,88569.0,88561.0,0.53244868]
[1769493740767,0.01129063,88569.0,88562.0,0.02479259]
[1769493741703,0.01129063,88569.0,88561.0,0.53244868]
[1769493742133,0.01129075,88568.0,88561.0,0.53244868]
[1769493742469,0.01129063,88569.0,88561.0,0.53244868]
[1769493743039,0.01129075,88568.0,88561.0,0.53244868]
[1769493743254,0.01129088,88567.0,88561.0,0.53244868]
[1769493743455,0.01129075,88568.0,88561.0,0.53244868]
[1769493743653,0.01129088,88567.0,88561.0,0.53244868]
[1769493743859,0.01129075,88568.0,88561.0,0.53244868]
[1769493744861,0.01129088,88567.0,88561.0,0.53244868]
[1769493745077,0.01129075,88568.0,88561.0,0.53244868]
[1769493745600,0.02111597,88574.0,88561.0,0.53244868]
[1769493745804,0.11301558,88573.0,88561.0,0.53244868]
[1769493746112,0.01129063,88569.0,88557.0,0.0225552]
[1769493746450,0.01129075,88568.0,88557.0,0.54424214]
[1769493746645,0.06773972,88575.0,88557.0,0.57752291]
[1769493746872,0.06773972,88575.0,88560.0,0.02261581]
[1769493746873,0.01129012,88573.0,88560.0,0.02261581]
[1769493747081,0.01129012,88573.0,88561.0,0.52168694]
[1769493747320,0.01129024,88572.0,88561.0,0.57611722]
[1769493747607,0.01129037,88571.0,88561.0,0.52168694]
[1769493747812,0.01129063,88569.0,88561.0,0.52168694]
[1769493748115,0.01129024,88572.0,88561.0,0.52168694]
[1769493748326,0.01129037,88571.0,88561.0,0.52168694]
[1769493748736,0.0112905,88570.0,88561.0,0.52168694]
[1769493748947,0.01129012,88573.0,88561.0,0.52168694]
[1769493749545,0.01129024,88572.0,88561.0,0.52168694]
[1769493749754,0.01128999,88574.0,88561.0,0.52168694]
[1769493750797,0.01129012,88573.0,88561.0,0.52168694]
[1769493754771,0.01129024,88572.0,88561.0,0.52168694]
[1769493754964,0.01129012,88573.0,88561.0,0.52168694]
[1769493755298,0.06774076,88573.0,88561.0,0.52168694]
[1769493755497,0.06774085,88573.0,88561.0,0.52168694]
[1769493755707,0.01129024,88572.0,88561.0,0.52168694]
[1769493755950,0.01129012,88573.0,88561.0,0.52168694]
[1769493756151,0.01129024,88572.0,88561.0,0.52168694]
[1769493756870,0.01129012,88573.0,88561.0,0.52168694]
[1769493757011,0.01128986,88575.0,88561.0,0.52168694]
[1769493758836,0.03594223,88576.0,88561.0,0.57611722]
[1769493759067,0.11297689,88575.0,88561.0,0.57539029]
[1769493759244,0.03594223,88576.0,88561.0,0.57539029]
[1769493759438,0.0246525,88576.0,88561.0,0.57539029]
[1769493759613,0.03594223,88576.0,88561.0,0.57539029]
[1769493759815,0.01128986,88575.0,88562.0,0.05980061]
[1769493760070,0.01128986,88575.0,88561.0,0.52096001]
[1769493760288,0.01128999,88574.0,88561.0,0.52096001]
[1769493760878,0.01129012,88573.0,88561.0,0.52096001]
[1769493761125,0.01128999,88574.0,88561.0,0.52096001]
[1769493761687,0.01128986,88575.0,88561.0,0.52096001]
[1769493762637,0.03594223,88576.0,88561.0,0.52096001]
[1769493762823,0.11300946,88575.0,88561.0,0.52096001]
[1769493763136,0.01128986,88575.0,88561.0,0.52096001]
[1769493763681,0.03594223,88576.0,88561.0,0.52096001]
[1769493763888,0.11301506,88575.0,88561.0,0.52096001]
[1769493764092,0.03594223,88576.0,88561.0,0.52096001]
[1769493764286,0.1243109,88575.0,88561.0,0.52096001]
[1769493764514,0.01128986,88575.0,88561.0,0.52096001]
[1769493764832,0.03594223,88576.0,88561.0,0.52096001]
[1769493765057,0.11302104,88575.0,88561.0,0.52096001]
[1769493765258,0.03594223,88576.0,88561.0,0.52096001]
[1769493765259,0.11302841,88574.0,88561.0,0.52096001]
[1769493765488,0.03594223,88576.0,88561.0,0.52096001]
[1769493765686,0.11302841,88575.0,88561.0,0.52096001]
[1769493765894,0.11302841,88574.0,88561.0,0.52096001]
[1769493766193,0.0246525,88576.0,88562.0,0.05435758]
[1769493766510,0.56796774,88579.0,88562.0,0.05435758]
[1769493766511,0.49066098,88579.0,88562.0,0.05435758]
[1769493766666,0.01128961,88577.0,88562.0,0.05435758]
[1769493768365,0.01128973,88576.0,88562.0,0.05435758]
[1769493769733,0.01128973,88576.0,88561.0,0.52096001]
[1769493770863,0.01128973,88576.0,88561.0,0.54357582]
[1769493771424,0.01128961,88577.0,88561.0,0.54357582]
[1769493771626,0.03579458,88578.0,88561.0,0.54357582]
[1769493771952,0.01128923,88580.0,88565.0,0.02261581]
[1769493772164,0.11604,88582.0,88565.0,0.54430275]
[1769493772540,0.0246525,88585.0,88567.0,0.5378389]
[1769493772541,0.0001474,88585.0,88567.0,0.5378389]
[1769493772745,0.0001474,88585.0,88569.0,0.56278538]
[1769493772959,0.0001474,88585.0,88571.0,0.02494648]
[1769493773165,0.0001474,88585.0,88573.0,0.56278538]
[1769493774161,0.01143599,88585.0,88573.0,0.56278538]
[1769493774343,0.01190348,88585.0,88573.0,0.56278538]
[1769493774820,0.00061489,88585.0,88573.0,0.56278538]
[1769493776548,0.00061489,88585.0,88573.0,0.61906392]
[1769493779080,0.01190348,88585.0,88573.0,0.61906392]
[1769493779401,0.00061489,88585.0,88573.0,0.56278538]
[1769493780193,0.00061489,88585.0,88573.0,0.5378389]
[1769493780483,0.00061489,88585.0,88575.0,0.5378389]
[1769493784714,0.00061489,88585.0,88576.0,0.02494648]
[1769493784890,0.00061489,88585.0,88579.0,0.5378389]
[1769493789155,0.00061489,88585.0,88579.0,0.18186281]
[1769493789360,0.01,88579.0,88565.0,0.5378389]
[1769493789978,0.01,88579.0,88566.0,0.02494648]
[1769493790186,0.01,88579.0,88568.0,0.02494648]
[1769493790585,0.01,88579.0,88562.0,0.01168846]
[1769493790586,0.01,88579.0,88569.0,0.5378389]
[1769493790786,0.01,88579.0,88569.0,0.56278538]
[1769493791010,0.03658643,88584.0,88569.0,0.56278538]
[1769493791465,0.11268497,88584.0,88569.0,0.56278538]
[1769493792363,0.07609854,88584.0,88569.0,0.56278538]
[1769493792925,0.00061489,88585.0,88569.0,0.5378389]
[1769493793126,0.00061489,88585.0,88572.0,0.02494648]
[1769493793332,0.00061489,88585.0,88574.0,0.56278538]
[1769493795252,0.00061489,88585.0,88574.0,0.52888728]
[1769493795977,0.00061489,88585.0,88562.0,0.01128782]
[1769493796185,0.02387279,88583.0,88562.0,0.54912672]
[1769493796362,0.02387279,88583.0,88565.0,0.02494648]
[1769493796705,0.00061489,88585.0,88567.0,0.02494648]
[1769493796897,0.00061489,88585.0,88568.0,0.56278538]
[1769493797131,0.00061489,88585.0,88569.0,0.02494648]
[1769493797248,0.00061489,88585.0,88570.0,0.5378389]
[1769493797857,0.51837226,88590.0,88570.0,0.5378389]
[1769493797858,0.0001474,88603.0,88570.0,0.05627854]
[1769493798093,0.0001474,88603.0,88581.0,0.5378389]
[1769493798294,0.0001474,88603.0,88584.0,0.02494648]
[1769493798612,0.0001474,88603.0,88585.0,0.24615504]
[1769493798813,0.02427279,88601.0,88585.0,0.24615504]
[1769493799012,0.02427279,88601.0,88585.0,0.25744095]
[1769493799415,0.02427279,88601.0,88581.0,0.00014019]
[1769493799615,0.50708431,88598.0,88581.0,0.00014019]
[1769493799862,0.02387279,88595.0,88582.0,0.02427279]
[1769493800230,0.02387279,88595.0,88581.0,0.00014019]
[1769493801042,0.02387279,88595.0,88581.0,0.51802935]
[1769493802315,0.02401249,88593.0,88581.0,0.00014019]
[1769493806588,0.55586527,88590.0,88572.0,0.0001474]
[1769493806799,0.55586527,88586.0,88572.0,0.0001474]
[1769493806980,0.55586527,88586.0,88563.0,0.0001474]
[1769493806981,0.55586527,88582.0,88565.0,0.03390472]
[1769493807205,0.55586527,88582.0,88563.0,0.0001474]
[1769493807206,0.05671535,88581.0,88563.0,0.0001474]
[1769493807451,0.05671535,88581.0,88561.0,0.06274927]
[1769493807452,0.02401249,88576.0,88561.0,0.06274927]
[1769493807649,0.02401249,88576.0,88547.0,0.0339092]
[1769493807650,0.02401249,88572.0,88547.0,0.0339092]
[1769493807853,0.02401249,88570.0,88551.0,0.534603]